bitfinex-derivatives/quotes_ETHF0:USTF0_20250919
["timestamp","ask_amount","ask_price","bid_price","bid_amount"]
[1758308868845,1.78972774,4458.6,4458.5,5.62528233]
[1758308869045,1.78972774,4458.6,4458.5,5.85128233]
[1758308869844,1.78972774,4458.6,4458.5,5.62528233]
[1758308870043,1.78972774,4458.6,4458.5,5.85128233]
[1758308870442,1.78972774,4458.6,4458.5,5.62528233]
[1758308870637,1.16982669,4458.6,4458.5,5.62528233]
[1758308870844,1.16982669,4458.6,4458.5,5.85128233]
[1758308872242,0.72132669,4458.6,4458.5,5.62528233]
[1758308872450,0.72132669,4458.6,4458.5,5.85128233]
[1758308873851,0.72151295,4458.6,4458.5,5.85128233]
[1758308874652,0.72151295,4458.6,4458.5,5.62528233]
[1758308874853,0.72151295,4458.6,4458.5,5.85128233]
[1758308880755,2.20611295,4458.6,4458.5,5.85128233]
[1758308881757,0.72151295,4458.6,4458.5,5.85128233]
[1758308884365,1.14031295,4458.6,4458.5,5.85128233]
[1758308884665,1.76631295,4458.6,4458.5,5.85128233]
[1758308885865,0.72151295,4458.6,4458.5,5.85128233]
[1758308890677,0.72151295,4458.6,4458.5,5.62528233]
[1758308890877,0.72151295,4458.6,4458.5,5.85128233]
[1758308892478,0.7219296,4458.6,4458.5,5.85128233]
[1758308893475,1.1407296,4458.6,4458.5,5.85128233]
[1758308894878,0.7219296,4458.6,4458.5,5.85128233]
[1758308895179,2.2065296,4458.6,4458.5,5.11678233]
[1758308895583,2.2065296,4458.6,4458.5,5.54558233]
[1758308895983,2.2065296,4458.6,4458.5,5.31958233]
[1758308896278,9.4143296,4458.6,4458.5,0.84548233]
[1758308896481,9.4143296,4458.6,4458.5,1.90898233]
[1758308896675,2.2065296,4458.6,4458.5,2.58858233]
[1758308898181,0.7219296,4458.6,4458.5,2.58858233]
[1758308898681,1.7667296,4458.6,4458.5,2.58858233]
[1758308899983,2.2065296,4458.6,4458.5,2.58858233]
[1758308901379,0.7219296,4458.6,4458.5,2.58858233]
[1758308905981,0.2450724,4458.6,4458.5,2.58858233]
[1758308906186,0.72234366,4458.6,4458.5,2.58858233]
[1758308906882,1.76714366,4458.6,4458.5,2.58858233]
[1758308907189,2.20694366,4458.6,4458.5,2.58858233]
[1758308907389,2.20694366,4458.6,4458.5,2.33778233]
[1758308908183,2.20694366,4458.6,4458.5,2.58858233]
[1758308908389,0.72234366,4458.6,4458.5,2.58858233]
[1758308909189,1.16054366,4458.6,4458.5,2.58858233]
[1758308909589,0.72234366,4458.6,4458.5,2.58858233]
[1758308911392,0.72234366,4458.6,4458.5,2.36258233]
[1758308911588,0.72234366,4458.6,4458.5,2.58858233]
[1758308911793,1.16054366,4458.6,4458.5,2.58858233]
[1758308912189,1.80104366,4458.6,4458.5,2.58858233]
[1758308912494,1.16054366,4458.6,4458.5,2.36258233]
[1758308912797,1.16054366,4458.6,4458.5,2.58858233]
[1758308913492,0.72234366,4458.6,4458.5,2.58858233]
[1758308913692,1.16054366,4458.6,4458.5,2.58858233]
[1758308913891,1.16054366,4458.6,4458.5,2.36258233]
[1758308914091,1.16054366,4458.6,4458.5,2.58858233]
[1758308914690,1.16054366,4458.6,4458.5,2.36258233]
[1758308914994,1.16054366,4458.6,4458.5,2.58858233]
[1758308916095,1.13855231,4458.6,4458.5,2.58858233]
[1758308919401,1.77905231,4458.6,4458.5,2.58858233]
[1758308920497,1.77907415,4458.6,4458.5,2.58858233]
[1758308921702,2.19897415,4458.6,4458.5,2.58858233]
[1758308921895,2.19897415,4458.6,4458.5,2.33778233]
[1758308922905,2.19897415,4458.6,4458.5,2.11178233]
[1758308923107,2.19897415,4458.6,4458.5,2.33778233]
[1758308924103,2.19897415,4458.6,4458.5,2.58488233]
[1758308926407,2.19897415,4458.6,4458.5,2.33778233]
[1758308932810,2.19897415,4458.6,4458.5,2.11178233]
[1758308933111,2.19897415,4458.6,4458.5,2.33778233]
[1758308933811,2.19905677,4458.6,4458.5,2.33778233]
[1758308934614,2.19981507,4458.6,4458.5,2.33778233]
[1758308935812,2.19981507,4458.6,4458.5,2.11178233]
[1758308936113,2.19981507,4458.6,4458.5,2.33778233]
[1758308937916,2.19981507,4458.6,4458.5,2.58488233]
[1758308938116,1.13941507,4458.6,4458.5,2.58488233]
[1758308938811,0.70121507,4458.6,4458.5,2.58488233]
[1758308944713,0.5884,4460.0,4459.5,1.7153]
[1758308945023,1.0055,4459.8,4459.7,4.0623]
[1758308945213,1.4399,4460.4,4460.3,0.8545]
[1758308945414,1.0055,4460.4,4460.3,1.7037]
[1758308945614,1.4399,4460.8,4460.7,1.4777]
[1758308945821,1.4399,4460.8,4460.7,1.7037]
[1758308947722,1.4399,4460.8,4460.7,0.226]
[1758308949319,1.4399,4460.8,4460.7,0.8492]
[1758308949519,1.4399,4460.8,4460.7,0.226]
[1758308950731,1.4399,4460.8,4460.7,1.7037]
[1758308951730,1.0055,4460.8,4460.7,1.7037]
[1758308952526,1.0055,4460.8,4460.7,1.4777]
[1758308952733,1.0055,4460.8,4460.7,1.7037]
[1758308953831,3.2078,4461.1,4460.7,1.0805]
[1758308954033,1.0055,4460.9,4460.8,1.4777]
[1758308956327,1.4399,4460.9,4460.8,1.4777]
[1758308956726,2.11611322,4460.9,4460.8,1.4777]
[1758308959629,1.09331322,4460.9,4460.8,1.4777]
[1758308959829,0.67621322,4460.9,4460.8,1.88099]
[1758308960538,0.67621322,4460.9,4460.8,5.08879]
[1758308960729,0.05671322,4460.9,4460.8,5.08879]
[1758308962840,3.2078,4461.9,4461.4,1.4777]
[1758308962841,1.0055,4461.5,4461.4,1.4777]
[1758308963034,1.0055,4461.5,4461.4,1.7037]
[1758308963335,1.4399,4461.5,4461.4,1.7037]
[1758308972643,1.63917348,4461.5,4461.4,1.7037]
[1758308974545,0.16584676,4461.5,4461.4,6.33108]
[1758308974742,3.2078,4462.6,4462.5,1.6975]
[1758308975045,5.12747096,4462.6,4462.5,1.677]
[1758308977141,5.12747096,4462.6,4462.5,0.226]
[1758308978244,0.8492,4462.4,4462.3,0.2484]
[1758308978547,1.91967096,4462.4,4462.3,0.0224]
[1758308979146,1.91967096,4462.4,4462.1,0.226]
[1758308979343,1.4492,4462.2,4462.1,0.226]
[1758308979545,1.6847,4462.0,4461.9,2.4678]
[1758308979846,5.36297096,4462.0,4461.9,2.4678]
[1758308981736,5.36297096,4462.0,4461.9,3.5156]
[1758308981938,5.12747096,4462.0,4461.9,3.9188]
[1758308983044,5.36297096,4462.0,4461.9,3.5156]
[1758308983641,5.36297096,4462.0,4461.9,3.2896]
[1758308983949,5.36297096,4462.0,4461.9,3.5156]
[1758308984849,5.36297096,4462.0,4461.9,2.8874]
[1758308986746,5.55989531,4462.0,4461.9,3.5156]
[1758308987150,5.5598547,4462.0,4461.9,3.5156]
[1758308987349,5.55988447,4462.0,4461.9,3.9188]
[1758308991150,3.87518447,4462.0,4461.9,3.9188]
[1758308991357,5.32438447,4462.0,4461.9,3.9188]
[1758308993752,5.55988447,4462.0,4461.9,3.9188]
[1758308994757,5.08945412,4462.0,4461.9,3.9188]
[1758308994953,5.56024523,4462.0,4461.9,3.9188]
[1758308995360,5.56037478,4462.0,4461.9,3.9188]
[1758308995547,5.32487478,4462.0,4461.9,3.9188]
[1758309000357,1.08787478,4462.0,4461.9,3.9188]
[1758309000960,1.66837478,4462.0,4461.9,3.9188]
[1758309001958,2.08017478,4462.0,4461.9,3.9188]
[1758309004060,2.08017478,4462.0,4461.9,3.9178]
[1758309006053,2.08017478,4462.0,4461.9,3.6928]
[1758309006260,2.08017478,4462.0,4461.9,3.9178]
[1758309006863,1.60938367,4462.0,4461.9,3.9178]
[1758309008263,2.0808537,4462.0,4461.9,3.9178]
[1758309009961,1.88377003,4462.0,4461.9,3.9178]
[1758309010164,1.50028418,4462.0,4461.9,3.9178]
[1758309010355,0.66848418,4462.0,4461.9,3.9178]
[1758309010962,1.08858418,4462.0,4461.9,3.9178]
[1758309011164,1.66908418,4462.0,4461.9,3.9178]
[1758309011656,2.08088418,4462.0,4461.9,3.9178]
[1758309012866,0.66848418,4462.0,4461.9,3.9178]
[1758309014962,1.66908418,4462.0,4461.9,3.9178]
[1758309017669,1.66908418,4462.0,4461.9,3.6928]
[1758309017868,1.66908418,4462.0,4461.9,3.9178]
[1758309020864,1.08858418,4462.0,4461.9,3.9178]
[1758309021071,0.66848418,4462.0,4461.9,3.9178]
[1758309021962,0.47147003,4462.0,4461.9,3.9178]
[1758309022171,0.66852393,4462.0,4461.9,3.9178]
[1758309023667,3.2078,4462.5,4461.9,7.91692]
[1758309023963,0.6178618,4462.4,4462.3,1.84436]
[1758309024164,0.6178618,4462.4,4462.3,5.27716]
[1758309025371,0.00545023,4463.0,4462.9,1.4412]
[1758309025669,0.00545023,4463.0,4462.9,1.6662]
[1758309035775,3.6165,4463.5,4463.4,0.7975]
[1758309035977,4.1936,4463.5,4463.4,1.6271]
[1758309036474,4.5764,4463.5,4463.4,1.6271]
[1758309037276,5.24383336,4463.5,4463.4,1.6271]
[1758309044692,5.04122442,4463.5,4463.4,1.6271]
[1758309046491,5.24393147,4463.5,4463.4,1.6271]
[1758309049691,5.47773147,4463.5,4463.4,1.6271]
[1758309049885,5.47773147,4463.5,4463.0,1.61844977]
[1758309050091,5.47773147,4463.5,4462.8,0.225]
[1758309050092,0.2338,4463.0,4462.8,0.225]
[1758309050291,5.24393147,4462.9,4462.8,0.225]
[1758309056302,3.00313147,4462.9,4462.8,0.225]
[1758309056602,3.41183147,4462.9,4462.8,0.225]
[1758309060303,3.41183147,4462.9,4462.8,0.8469]
[1758309061906,3.41183147,4462.9,4462.8,0.225]
[1758309063806,3.41183147,4462.9,4462.8,0.8469]
[1758309064110,3.41183147,4462.9,4462.8,1.2387]
[1758309065508,3.41183147,4462.9,4462.8,1.0137]
[1758309066402,3.41183147,4462.9,4462.3,0.6219]
[1758309066603,1.3585,4462.4,4462.3,1.4033]
[1758309066805,0.66791777,4462.4,4462.3,1.4033]
[1758309068012,0.66791777,4462.4,4462.3,1.0137]
[1758309069108,3.87571777,4462.4,4462.3,0.6219]
[1758309070109,3.87571777,4462.4,4462.3,1.0137]
[1758309070511,3.87571777,4462.4,4462.3,1.4033]
[1758309072614,3.87571777,4462.4,4462.3,1.0137]
[1758309074416,3.67308625,4462.4,4462.3,1.0137]
[1758309074616,3.67308625,4462.4,4462.3,0.6219]
[1758309076318,3.67308625,4462.4,4462.3,1.0137]
[1758309077313,3.67308625,4462.4,4462.3,0.6219]
[1758309078817,3.87291746,4462.4,4462.3,0.6219]
[1758309080016,3.87291746,4462.4,4462.3,1.0137]
[1758309095830,3.87291746,4462.4,4462.3,1.3968]
[1758309098335,3.67308625,4462.4,4462.3,1.3968]
[1758309098535,3.87229693,4462.4,4462.3,1.3968]
[1758309100543,3.87229693,4462.4,4462.3,1.0137]
[1758309101245,3.87229693,4462.4,4462.3,1.3968]
[1758309104140,3.87229693,4462.4,4462.3,1.0137]
[1758309105441,3.67308625,4462.4,4462.3,1.3968]
[1758309105648,3.87236026,4462.4,4462.3,1.3968]
[1758309108045,3.87236026,4462.4,4462.3,0.6219]
[1758309108747,4.09736026,4462.4,4462.3,0.6219]
[1758309109755,4.09736026,4462.4,4462.3,0.467]
[1758309110049,4.09736026,4462.4,4462.0,0.2362]
[1758309110249,0.66456026,4462.3,4462.0,0.2362]
[1758309110547,0.88956026,4462.2,4462.0,0.2362]
[1758309110742,0.66456026,4462.1,4462.0,0.2362]
[1758309111848,0.66456026,4462.1,4462.0,0.841]
[1758309115049,0.66456026,4462.1,4462.0,1.2368]
[1758309115751,0.66456026,4462.1,4462.0,1.6199]
[1758309139057,3.87236026,4462.1,4462.0,1.6199]
[1758309154671,4.80407026,4462.1,4461.8,0.0224]
[1758309154873,3.75591,4462.1,4462.0,1.021]
[1758309155072,4.64351877,4462.1,4462.0,1.021]
[1758309155765,4.41940877,4462.1,4462.0,1.021]
[1758309156169,4.80300877,4462.1,4462.0,1.021]
[1758309156667,4.80300877,4462.1,4462.0,1.586]
[1758309156867,4.41940877,4462.1,4461.8,0.5874]
[1758309157066,1.2941,4461.9,4461.8,0.4209]
[1758309157271,1.95670877,4461.9,4461.8,0.807]
[1758309158772,1.04560877,4461.9,4461.8,1.2087]
[1758309159071,1.27060877,4461.9,4461.8,1.2087]
[1758309159276,0.88760877,4461.9,4461.8,1.2087]
[1758309160173,0.66260877,4461.9,4461.8,1.2087]
[1758309163878,1.04560877,4461.9,4461.8,1.2087]
[1758309166673,1.42900877,4461.9,4461.8,1.2087]
[1758309166871,1.95670877,4461.9,4461.8,0.807]
[1758309170879,1.95670877,4461.9,4461.8,1.2087]
[1758309172781,1.42900877,4461.9,4461.8,1.2087]
[1758309173483,0.66260877,4461.9,4461.8,1.2087]
[1758309175680,1.04560877,4461.9,4461.8,1.2087]
[1758309177177,1.42900877,4461.9,4461.8,1.2087]
[1758309177384,1.95670877,4461.9,4461.8,1.2087]
[1758309180385,1.04560877,4461.9,4461.8,1.2087]
[1758309180573,1.93600877,4461.9,4461.8,0.4209]
[1758309180781,1.2645,4461.6,4461.5,1.5917]
[1758309181086,5.13490877,4461.6,4461.5,1.1936]
[1758309181385,5.13490877,4461.6,4461.5,1.5917]
[1758309181581,4.62000877,4461.6,4461.5,1.5917]
[1758309182085,5.13490877,4461.6,4461.5,1.5917]
[1758309183385,4.62000877,4461.6,4461.5,1.5917]
[1758309185991,5.13490877,4461.6,4461.5,1.5917]
[1758309187290,5.13490877,4461.6,4461.5,1.1936]
[1758309191088,5.13518516,4461.6,4461.5,1.1936]
[1758309191287,5.13518516,4461.6,4461.5,0.5994]
[1758309191690,5.13351733,4461.6,4461.5,0.5994]
[1758309192189,5.35851733,4461.6,4461.0,0.2362]
[1758309192494,1.3493,4461.1,4461.0,1.0599]
[1758309192695,2.01051733,4461.1,4461.0,1.458]
[1758309194695,2.01051733,4461.1,4461.0,1.0599]
[1758309195092,2.01051733,4461.1,4461.0,1.458]
[1758309199597,1.41081733,4461.1,4461.0,1.458]
[1758309199903,0.66121733,4461.1,4461.0,1.458]
[1758309200603,0.66121733,4461.1,4461.0,4.6658]
[1758309204415,3.2078,4462.2,4462.0,1.5917]
[1758309204616,3.2078,4462.2,4462.1,1.3707]
[1758309205809,3.5819,4462.2,4462.1,1.3707]
[1758309208619,4.5252,4462.2,4462.1,0.5994]
[1758309209516,4.5252,4462.2,4461.9,0.5986]
[1758309209716,4.5252,4462.2,4461.7,0.225]
[1758309209916,4.5252,4462.2,4461.8,0.5986]
[1758309212813,0.5678,4462.1,4462.0,0.3624]
[1758309213010,1.3379,4462.1,4462.0,0.961]
[1758309215123,0.3997,4462.1,4462.0,1.5747]
[1758309215822,3.2078,4462.2,4462.1,0.5986]
[1758309216127,4.5457,4462.8,4462.7,0.961]
[1758309216313,5.20091784,4462.8,4462.7,1.339]
[1758309217023,5.20091784,4462.8,4462.7,0.961]
[1758309220625,0.19048133,4462.8,4462.7,5.339]
[1758309220825,0.03901291,4463.5,4463.3,0.40306]
[1758309220826,0.2405,4463.5,4463.3,0.40306]
[1758309221024,0.8083,4463.5,4463.4,0.226]
[1758309221327,0.2405,4463.5,4463.4,4.226]
[1758309222527,0.5678,4463.7,4463.5,0.40305]
[1758309222825,0.5678,4463.7,4463.5,4.40305]
[1758309223027,0.2405,4464.0,4463.9,2.07652]
[1758309223329,0.2405,4464.0,4463.9,5.51032]
[1758309223527,0.2405,4464.0,4463.9,9.51032]
[1758309225231,0.8083,4464.0,4463.9,9.51032]
[1758309225633,1.208,4464.0,4463.9,9.1073]
[1758309226132,0.8083,4464.0,4463.9,9.1073]
[1758309229823,0.3704,4464.8,4464.7,1.0049]
[1758309230024,0.7701,4464.8,4464.7,1.2309]
[1758309230724,0.7701,4464.8,4464.7,0.72108828]
[1758309231924,1.3379,4464.8,4464.7,0.72108828]
[1758309232825,1.99371417,4464.8,4464.7,0.72108828]
[1758309235233,1.99371417,4464.8,4464.7,1.69768828]
[1758309235731,1.99371417,4464.8,4464.7,1.09908828]
[1758309236728,1.99371417,4464.8,4464.7,0.72108828]
[1758309237733,1.99371417,4464.8,4464.7,0.35868828]
[1758309241535,1.99371417,4464.8,4464.7,0.14019495]
[1758309241835,1.99371417,4464.8,4464.7,1.07639495]
[1758309242138,1.99371417,4464.8,4464.7,0.50259495]
[1758309244936,1.99371417,4464.8,4464.7,1.48199495]
[1758309245829,0.65581417,4464.8,4464.7,1.48199495]
[1758309246035,1.59491417,4464.8,4464.7,1.88494495]
[1758309246334,1.59491417,4464.8,4464.7,1.48199495]
[1758309247131,1.59491417,4464.8,4464.7,4.68979495]
[1758309247939,1.59491417,4464.8,4464.7,8.68979495]
[1758309248132,0.2405,4465.5,4464.8,0.64498583]
[1758309248438,0.2405,4465.5,4464.9,1.359]
[1758309248439,0.3771,4465.0,4464.9,1.359]
[1758309248739,0.3771,4465.0,4464.9,1.584]
[1758309248936,2.37112167,4465.5,4465.4,0.3796]
[1758309249136,2.37112167,4465.5,4465.4,0.88711631]
[1758309249336,1.0092,4465.5,4465.4,0.88711631]
[1758309250234,1.5712,4465.5,4465.4,0.225]
[1758309250940,1.5712,4465.5,4465.4,0.6046]
[1758309251138,1.5712,4465.5,4465.4,1.0102]
[1758309251442,1.5712,4465.5,4465.4,0.79174053]
[1758309252440,1.5712,4465.5,4465.4,1.36554053]
[1758309254643,1.5712,4465.5,4465.4,0.00654053]
[1758309255145,1.5712,4465.5,4465.4,0.225]
[1758309257038,1.5712,4465.5,4465.3,0.225]
[1758309258947,1.5712,4465.5,4465.2,0.0223]
[1758309259346,0.7724,4464.9,4463.7,0.5738]
[1758309259551,0.9573,4463.9,4463.8,0.4092]
[1758309259749,1.3344,4463.9,4463.8,0.8148]
[1758309260248,2.00737152,4463.9,4463.8,0.8148]
[1758309264748,2.00737152,4463.9,4463.8,1.3886]
[1758309264949,2.00737152,4463.9,4463.8,0.8148]
[1758309265150,2.00737152,4463.9,4463.8,1.0102]
[1758309265749,2.00737152,4463.9,4463.8,1.584]
[1758309267549,1.23497152,4463.9,4463.8,1.584]
[1758309267745,0.67297152,4463.9,4463.8,1.584]
[1758309267947,1.23497152,4463.9,4463.8,1.584]
[1758309268551,1.61207152,4463.9,4463.8,1.584]
[1758309268750,2.01457152,4463.9,4463.8,1.0102]
[1758309269255,2.01457152,4463.9,4463.8,1.6071]
[1758309270755,0.3062,4464.1,4464.0,1.055]
[1758309271453,0.3062,4464.1,4464.0,1.8769]
[1758309272055,0.3062,4464.1,4464.0,1.6519]
[1758309272355,0.3062,4464.1,4464.0,1.8769]
[1758309275055,0.6124,4464.1,4464.0,1.8769]
[1758309275757,0.8037,4464.1,4464.0,0.8382]
[1758309276061,0.8037,4464.1,4463.6,3.2078]
[1758309276062,0.8037,4463.7,4463.6,0.5969]
[1758309276359,0.8037,4463.7,4463.6,1.2284]
[1758309276559,2.41282405,4463.7,4463.6,0.8219]
[1758309276756,2.22152405,4463.7,4463.6,1.2284]
[1758309277060,0.8037,4463.7,4463.6,1.2284]
[1758309277260,0.8037,4463.7,4463.6,0.5969]
[1758309277462,0.6124,4463.7,4463.6,1.0034]
[1758309277758,0.8037,4463.7,4463.6,0.5969]
[1758309278161,0.8037,4463.7,4463.6,1.0034]
[1758309278358,0.6124,4463.7,4463.6,1.0034]
[1758309279259,0.8037,4463.7,4463.6,1.0034]
[1758309280653,0.8037,4463.7,4463.6,0.5969]
[1758309281862,0.6124,4463.7,4463.6,1.0034]
[1758309282563,1.3292754,4463.7,4463.6,1.0034]
[1758309283269,1.3292754,4463.7,4463.6,1.4106]
[1758309286665,1.32939231,4463.7,4463.6,1.4106]
[1758309291368,1.52069231,4463.7,4463.6,0.8219]
[1758309291769,1.52069231,4463.7,4463.6,0.60335272]
[1758309291962,1.52069231,4463.7,4463.5,2.2406]
[1758309291963,5.55342231,4463.7,4463.5,2.2406]
[1758309292270,10.95554636,4463.6,4463.0,0.2413]
[1758309292567,0.7877,4463.1,4463.0,0.8728]
[1758309292769,1.50469231,4463.1,4463.0,0.8728]
[1758309293158,1.50469231,4463.1,4463.0,1.28]
[1758309293764,1.10219231,4463.1,4463.0,1.8769]
[1758309293962,0.71699231,4463.1,4463.0,5.0847]
[1758309295063,1.92108559,4463.1,4463.0,1.2447]
[1758309295259,1.92108559,4463.1,4463.0,1.4697]
[1758309295461,1.51118559,4463.1,4463.0,1.4697]
[1758309296365,1.51118559,4463.1,4463.0,1.8769]
[1758309296562,0.72348559,4463.1,4463.0,1.8769]
[1758309300169,0.72348559,4463.1,4463.0,5.0847]
[1758309300368,3.2078,4464.1,4463.0,9.30876]
[1758309300573,3.2078,4464.1,4464.0,1.6508]
[1758309300776,3.6152,4464.1,4464.0,1.8758]
[1758309301668,3.6152,4464.1,4464.0,1.65727127]
[1758309301867,3.2078,4464.1,4464.0,1.65727127]
[1758309302772,3.6152,4464.1,4464.0,1.65727127]
[1758309306173,0.4074,4464.1,4464.0,1.65727127]
[1758309306976,0.45340409,4464.1,4464.0,1.65727127]
[1758309307567,0.04600409,4464.1,4464.0,1.65727127]
[1758309310074,0.45340409,4464.1,4464.0,1.65727127]
[1758309310279,0.04600409,4464.1,4464.0,1.65727127]
[1758309311970,0.45340409,4464.1,4464.0,1.65727127]
[1758309312479,1.18613978,4464.1,4464.0,1.43227127]
[1758309312785,1.18613978,4464.1,4464.0,1.65727127]
[1758309313279,1.18612727,4464.1,4464.0,1.65727127]
[1758309313477,1.58622727,4464.1,4464.0,1.65727127]
[1758309313781,1.18612727,4464.1,4464.0,1.65727127]
[1758309313978,0.77872727,4464.1,4464.0,1.65727127]
[1758309315379,0.24876887,4464.1,4464.0,1.65727127]
[1758309315578,0.8075,4464.5,4464.4,1.4043]
[1758309315980,0.4074,4464.5,4464.4,1.4043]
[1758309316180,3.2078,4464.6,4464.5,1.6508]
[1758309316388,4.6181,4464.6,4464.5,1.6508]
[1758309316877,6.22722405,4464.6,4464.5,1.6508]
[1758309317084,6.22722405,4464.6,4464.5,1.4043]
[1758309318485,6.22722405,4464.6,4464.1,1.46217273]
[1758309318782,1.4103,4464.3,4464.2,0.225]
[1758309319480,1.4103,4464.2,4464.1,1.46217273]
[1758309319684,3.01884591,4464.2,4464.1,1.46217273]
[1758309320977,3.01884591,4464.2,4463.8,0.225]
[1758309321184,1.4103,4463.9,4463.8,0.225]
[1758309321887,0.6028,4463.8,4463.6,3.2078]
[1758309322083,1.4103,4463.6,4463.5,1.4622]
[1758309322675,4.6181,4463.6,4463.5,1.4622]
[1758309322875,0.4074,4462.5,4462.4,3.08499156]
[1758309323075,1.4103,4462.5,4462.4,3.71659156]
[1758309323280,0.8075,4462.5,4462.4,3.71659156]
[1758309323485,0.4074,4462.5,4462.4,3.71659156]
[1758309324681,0.6028,4462.8,4462.5,1.8337]
[1758309324888,0.8075,4462.8,4462.7,0.9977]
[1758309325082,0.8075,4462.8,4462.7,1.2227]
[1758309325277,0.8075,4462.8,4462.7,1.6293]
[1758309326090,0.4074,4462.8,4462.7,1.6293]
[1758309326391,1.2646,4462.8,4462.7,1.6293]
[1758309326688,0.8075,4462.8,4462.7,1.6293]
[1758309327484,1.99225691,4462.8,4462.7,1.2227]
[1758309327690,1.99225691,4462.8,4462.7,0.6178]
[1758309328084,1.99225691,4462.8,4462.7,0.9977]
[1758309330393,0.72765691,4462.8,4462.7,1.3943]
[1758309330992,1.12485691,4462.8,4462.7,1.3943]
[1758309332593,0.72765691,4462.8,4462.7,1.3943]
[1758309333992,0.72765691,4462.8,4462.7,5.61838]
[1758309334193,3.2078,4463.6,4463.5,1.0395]
[1758309334492,3.2078,4463.6,4463.5,1.8714]
[1758309335090,3.605,4463.6,4463.5,1.8714]
[1758309335300,4.4792,4463.6,4463.5,1.0605]
[1758309335795,4.4792,4463.6,4463.5,1.4748]
[1758309337294,3.2078,4463.6,4463.5,1.8714]
[1758309343906,3.605,4463.6,4463.5,1.8714]
[1758309344605,3.2078,4463.6,4463.5,1.8714]
[1758309344907,3.605,4464.2,4464.1,1.4178]
[1758309345099,3.605,4464.2,4464.1,1.6428]
[1758309345502,3.2078,4464.2,4464.1,1.6428]
[1758309346103,3.91493038,4464.2,4464.1,1.6428]
[1758309346903,0.70713038,4464.2,4464.1,1.6428]
[1758309347905,3.605,4464.7,4464.6,1.4178]
[1758309348103,4.4792,4464.7,4464.6,0.8319]
[1758309350602,3.2078,4464.7,4464.6,1.6428]
[1758309351303,4.0013,4464.7,4464.6,1.6428]
[1758309351503,4.4792,4464.7,4464.6,0.6069]
[1758309352411,4.4792,4464.7,4464.6,0.8319]
[1758309352911,4.4792,4464.7,4464.6,0.6069]
[1758309353212,1.2714,4464.6,4464.5,0.8319]
[1758309353414,1.2714,4464.6,4464.5,0.225]
[1758309354515,0.7935,4464.6,4464.4,0.225]
[1758309354708,1.2714,4464.5,4464.4,0.225]
[1758309355110,1.4621,4464.5,4464.4,0.225]
[1758309355409,1.2714,4464.5,4464.4,0.225]
[1758309355615,0.7935,4464.5,4464.4,1.6428]
[1758309356213,1.2714,4464.5,4464.4,1.6428]
[1758309359316,1.2714,4464.5,4464.4,0.225]
[1758309359719,1.2712,4464.4,4464.3,1.12656962]
[1758309359923,2.19813502,4464.4,4464.3,1.12656962]
[1758309360217,2.42213503,4464.4,4464.2,0.0224]
[1758309360407,1.97313502,4464.3,4464.2,0.0224]
[1758309360608,2.19713503,4464.3,4464.2,0.0224]
[1758309360818,0.4685,4464.2,4463.6,0.594]
[1758309361011,1.72087335,4464.1,4464.0,1.2298]
[1758309361211,5.40593502,4464.1,4464.0,1.2298]
[1758309361414,5.18093502,4464.1,4464.0,0.594]
[1758309361612,4.71243502,4464.1,4463.5,0.4536]
[1758309361809,0.8027,4463.6,4463.5,1.4511]
[1758309362013,1.50463502,4463.6,4463.5,1.4511]
[1758309362219,1.97313502,4463.6,4463.5,1.4511]
[1758309362420,5.18093502,4463.6,4463.5,0.594]
[1758309363513,4.71243502,4463.6,4463.3,0.819]
[1758309363712,1.2712,4463.4,4463.3,0.8414]
[1758309363914,1.97313502,4463.4,4463.3,0.8414]
[1758309364412,1.97313502,4463.4,4463.3,0.0224]
[1758309364716,5.97313502,4463.4,4463.3,0.0224]
[1758309365111,5.97313502,4463.4,4463.0,2.2408]
[1758309365317,4.479,4463.1,4463.0,2.2408]
[1758309365517,5.40593502,4463.1,4463.0,2.2408]
[1758309365724,1.2712,4462.6,4462.5,2.8348]
[1758309365919,1.97313502,4462.6,4462.5,2.8348]
[1758309366224,1.97313502,4462.6,4462.5,3.4706]
[1758309366627,1.50463502,4462.6,4462.5,3.8606]
[1758309366826,0.70193502,4462.6,4462.5,3.8606]
[1758309367026,0.70193502,4462.6,4462.5,7.8606]
[1758309367923,0.70029169,4462.6,4462.5,7.8606]
[1758309369424,0.70029169,4462.6,4462.5,3.8606]
[1758309374424,0.70029169,4462.6,4462.5,4.0856]
[1758309375928,1.11819169,4462.6,4462.5,4.0856]
[1758309376625,1.50299169,4462.6,4462.5,3.8606]
[1758309376831,1.97149169,4462.6,4462.5,4.0856]
[1758309377931,1.50299169,4462.6,4462.5,4.0856]
[1758309379128,1.97149169,4462.6,4462.5,4.0856]
[1758309380330,1.50299169,4462.6,4462.5,4.0856]
[1758309380638,0.70029169,4462.6,4462.5,4.0856]
[1758309385839,1.11819169,4462.6,4462.5,4.0856]
[1758309386234,0.70029169,4462.6,4462.5,4.0856]
[1758309391345,1.09379169,4462.6,4462.5,4.0856]
[1758309391537,0.70029169,4462.6,4462.5,4.0856]
[1758309403746,1.49969169,4462.6,4462.5,3.8606]
[1758309403947,1.95669169,4462.6,4462.5,4.0856]
[1758309404351,1.49969169,4462.6,4462.5,4.0856]
[1758309404847,1.49969169,4462.6,4462.5,3.8606]
[1758309405049,1.49969169,4462.6,4462.5,4.0856]
[1758309405750,1.09379169,4462.6,4462.5,4.0856]
[1758309405944,0.70029169,4462.6,4462.5,4.0856]
[1758309406840,2.30885078,4462.6,4462.5,4.0856]
[1758309414850,0.70029169,4462.6,4462.5,4.0856]
[1758309420959,1.49739169,4462.6,4462.5,3.8606]
[1758309421158,1.93359169,4462.6,4462.5,3.6956]
[1758309421359,1.93359169,4462.6,4462.5,3.0598]
[1758309422265,1.93359169,4462.6,4462.5,3.4656]
[1758309422558,1.93359169,4462.6,4462.5,3.7018]
[1758309428568,0.70029169,4462.6,4462.5,4.0833]
[1758309430757,0.71878598,4462.6,4462.5,4.0833]
[1758309438669,0.71876679,4462.6,4462.5,4.0833]
[1758309439665,1.51586679,4462.6,4462.5,3.8583]
[1758309439868,1.95206679,4462.6,4462.5,4.0833]